fUST/lending_fUST_20251021
["ID","MTS","AMOUNT","RATE_DAILY","PERIOD"]
[391916945,1760983846857,-207.579924,0.0002699,7]
[391916946,1760983846866,-10000.0,0.0002699,7]
[391916947,1760983846876,-10000.0,0.0002699,7]
[391916948,1760983846885,-10000.0,0.0002699,7]
[391916949,1760983846895,-10000.0,0.0002699,7]
[391916950,1760983846904,-10000.0,0.0002699,7]
[391916951,1760983846914,-10000.0,0.0002699,7]
[391916952,1760983846924,-10000.0,0.0002699,7]
[391916953,1760983846934,-10000.0,0.0002699,7]
[391916954,1760983846948,-10000.0,0.0002699,7]
[391916955,1760983846959,-10000.0,0.0002699,7]
[391916956,1760983846968,-10000.0,0.0002699,7]
[391916957,1760983846977,-10000.0,0.0002699,7]
[391916958,1760983846990,-10000.0,0.0002699,7]
[391916959,1760983847000,-10000.0,0.0002699,7]
[391916960,1760983847010,-10000.0,0.0002699,7]
[391916961,1760983847019,-10000.0,0.0002699,7]
[391916962,1760983847029,-10000.0,0.0002699,7]
[391916963,1760983847043,-4252.32589485,0.0002699,7]
[391916964,1760983847560,-5747.67410515,0.0002699,7]
[391916965,1760983847569,-896.20841998,0.0002699,7]
[391916966,1760983847587,-2764.25653728,0.0002699,7]
[391916967,1760983847866,-2948.67440308,0.0002699,7]
[391916968,1760983847878,-3390.86063966,0.0002699,7]
[391916969,1760983847887,-6699.28108236,0.0002699,7]
[391916970,1760983847898,-3300.71891764,0.0002699,7]
[391916971,1760983847907,-10000.0,0.0002699,7]
[391916972,1760983847916,-10000.0,0.0002699,7]
[391916973,1760983847926,-9954.17370176,0.0002699,7]
[391916974,1760983847938,-45.82629824,0.0002699,7]
[391916975,1760983847947,-10000.0,0.0002699,7]
[391916976,1760983847958,-1021.76535223,0.0002699,7]
[391916977,1760983847972,-8978.23464777,0.0002699,7]
[391916978,1760983847981,-5821.06243083,0.0002699,7]
[391916979,1760983848342,-556.71866737,0.0002699,7]
[391916980,1760983848353,-400.63727654,0.0002699,7]
[391916981,1760983848365,-3221.58162526,0.0002699,7]
[391916982,1760983848375,-10000.0,0.0002699,7]
[391916983,1760983848386,-6179.56090443,0.0002699,7]
[391916988,1760983931888,410.75540064,0.00033736,120]
[391916991,1760983962874,1882.0,0.00033736,30]
[391916992,1760983984928,150.0,0.00020557,2]
[391916993,1760983985393,150.0,0.00021536,2]
[391916997,1760984464970,5000.0,0.000241,2]
[391916998,1760984480852,3037.34217792,0.000241,2]
[391916999,1760984480876,962.65782208,0.000241,2]
[391917000,1760984507692,150.0,0.00020535,2]
[391917001,1760984508133,150.0,0.00021513,2]
[391917002,1760984508570,175.84,0.00022491,2]
[391917003,1760984508999,234.46,0.00023469,2]
[391917004,1760984592591,150.0,0.00020585,2]
[391917005,1760984593034,150.0,0.00021565,2]
[391917006,1760984593468,150.0,0.00022545,2]
[391917007,1760984593912,198.3,0.00023525,2]
[391917008,1760984637573,7678.75217792,0.00024,2]
[391917009,1760984637597,10000.01,0.00024,2]
[391917010,1760984637620,2322.12782208,0.00024,2]
[391917012,1760984662759,2460.31045357,0.00024075,2]
[391917013,1760984669496,300.0,0.000235,2]
[391917014,1760984671109,180.58,0.00020573,2]
[391917015,1760984671577,361.16,0.00021552,2]
[391917016,1760984671988,541.74,0.00022532,2]
[391917017,1760984672464,722.32,0.00023512,2]
[391917018,1760984681346,300.0,0.000235,2]
[391917043,1760984752844,157.6,0.00020585,2]
[391917044,1760984753333,315.19,0.00021565,2]
[391917045,1760984754630,472.79,0.00022545,2]
[391917046,1760984755095,630.38,0.00023526,2]
[391917049,1760984772433,154.0,9.2e-07,2]
[391917053,1760984782560,801.819264,0.00030137,120]
[391917073,1760984835887,150.0,0.00020736,2]
[391917075,1760984836276,275.08,0.00021724,2]
[391917076,1760984836725,412.62,0.00022711,2]
[391917078,1760984838093,550.15,0.00023699,2]
[391917127,1760984887887,4888.68804171,0.000237,30]
[391917130,1760984912635,155.0,0.00018,30]
[391917131,1760984914942,847.91990529,0.00021,10]
[391917133,1760984918753,150.0,0.00020746,2]
[391917134,1760984919184,239.75,0.00021734,2]
[391917135,1760984919625,359.62,0.00022722,2]
[391917136,1760984920609,479.5,0.0002371,2]
[391917137,1760984922178,286.94709786,0.00024,7]
[391917140,1760984928989,649.81,0.0002345,2]
[391917141,1760984943301,1058.70039989,0.00023955,12]
[391917142,1760984965772,-302.55780987,0.00024103,2]
[391917143,1760984968707,-203.69683925,0.00024103,2]
[391917144,1760984970605,-270.19878931,0.00024103,2]
[391917145,1760984972770,-196.68862908,0.00024103,2]
[391917146,1760984974718,-326.83136565,0.00024103,2]
[391917147,1760985001054,150.0,0.0002077,2]
[391917148,1760985001497,208.47,0.00021759,2]
[391917149,1760985001938,312.7,0.00022748,2]
[391917150,1760985002368,416.94,0.00023737,2]
[391917153,1760985010784,-248.97702334,0.00024103,2]
[391917154,1760985010806,-162.84702044,0.00024103,2]
[391917155,1760985011142,500.0,0.00023964,10]
[391917156,1760985013361,500.0,0.00023964,10]
[391917157,1760985015875,500.0,0.00023964,10]
[391917158,1760985017835,225.48,0.00023964,10]
[391917211,1760985032493,-37.15297956,0.00024103,2]
[391917213,1760985032503,-477.27090035,0.00024194,12]
[391917214,1760985032512,-321.07841024,0.00024726,2]
[391917216,1760985032524,-200.09158976,0.00024726,2]
[391917218,1760985032534,-593.892752,0.0002488,2]
[391917219,1760985032543,-150.0,0.0002488,2]
[391917221,1760985032552,-433.21251944,0.0002489,2]
[391917225,1760985032605,-341.6409388,0.0002489,2]
[391917228,1760985032614,-300.0,0.00024989,2]
[391917230,1760985032624,-793.0,0.00024989,2]
[391917234,1760985032634,-167.72588203,0.0002499,2]
[391917237,1760985032643,-277.83317917,0.0002499,2]
[391917241,1760985032654,-3958.59999999,0.0002499,2]
[391917268,1760985038612,-15753.96238044,0.0002499,2]
[391917269,1760985038622,-203.7,0.0002499,3]
[391917270,1760985038632,-3680.23,0.0002499,10]
[391917271,1760985038643,-5746.06,0.0002499,10]
[391917272,1760985038653,-180468.87270391,0.00025,30]
[391917273,1760985038663,-440.05506148,0.00025,7]
[391917274,1760985038673,-500.0,0.00025,2]
[391917275,1760985038683,-262.61079851,0.00025,2]
[391917276,1760985038693,-405.0,0.00025045,2]
[391917277,1760985038703,-172.5,0.0002548,2]
[391917278,1760985038712,-402.0,0.00025542,2]
[391917279,1760985038721,-843.0,0.00025554,2]
[391917280,1760985038731,-625.41,0.00025715,2]
[391917281,1760985038741,-1866.10366493,0.00025793,2]
[391917282,1760985038750,-9995.19777978,0.0002587,2]
[391917283,1760985038760,-280.73819981,0.0002588,7]
[391917284,1760985038769,-926.5,0.0002588,3]
[391917285,1760985038779,-463.25,0.0002588,3]
[391917286,1760985038790,-231.62,0.0002588,3]
[391917287,1760985038799,-694.91,0.0002588,3]
[391917288,1760985038809,-79961.5822382,0.0002588,2]
[391917289,1760985038819,-9995.19777978,0.00025883,2]
[391917290,1760985038828,-370000.0,0.0002589,2]
[391917291,1760985038837,-402.0,0.00025993,7]
[391917292,1760985038847,-402.0,0.00026006,2]
[391917293,1760985038857,-1866.10366493,0.0002607,2]
[391917294,1760985038867,-195.0,0.0002608,2]
[391917295,1760985038875,-504.92423634,0.00026189,2]
[391917296,1760985038884,-402.0,0.00026263,2]
[391917297,1760985038893,-402.0,0.00026285,7]
[391917298,1760985038903,-402.0,0.00026311,2]
[391917299,1760985038913,-310.0,0.00026337,2]
[391917300,1760985038922,-1866.10366493,0.00026347,2]
[391917301,1760985038932,-500.0,0.00026373,2]
[391917302,1760985038941,-9995.19777978,0.00026397,2]
[391917303,1760985038951,-300.0,0.00026407,30]
[391917304,1760985038961,-300.0,0.00026407,30]
[391917305,1760985038977,-300.0,0.00026407,30]
[391917306,1760985038995,-300.0,0.00026407,30]
[391917307,1760985039004,-300.0,0.00026407,30]
[391917308,1760985039014,-300.0,0.00026407,30]
[391917309,1760985039023,-300.0,0.00026407,30]
[391917310,1760985039033,-300.0,0.00026407,30]
[391917311,1760985039043,-300.0,0.00026407,30]
[391917312,1760985039053,-300.0,0.00026407,30]
[391917313,1760985039063,-300.0,0.00026407,30]
[391917314,1760985039073,-300.0,0.00026407,30]
[391917315,1760985039083,-300.0,0.00026407,30]
[391917316,1760985039092,-300.0,0.00026407,30]
[391917317,1760985039102,-300.0,0.00026407,30]
[391917318,1760985039113,-600.0,0.00026407,30]
[391917319,1760985039123,-500.0,0.00026428,2]
[391917320,1760985039133,-402.0,0.00026429,2]
[391917321,1760985039144,-160.0,0.00026457,2]
[391917322,1760985039154,-250.0,0.00026467,2]
[391917323,1760985039164,-402.0,0.00026491,2]
[391917324,1760985039175,-402.0,0.00026574,2]
[391917325,1760985039184,-1866.10366493,0.00026623,2]
[391917326,1760985039194,-402.0,0.00026661,2]
[391917327,1760985039204,-774.85345822,0.00026669,2]
[391917328,1760985039213,-217.5,0.0002668,2]
[391917329,1760985039221,-643.67247894,0.00026702,2]
[391917330,1760985039230,-729.64,0.00026704,2]
[391917331,1760985039238,-402.0,0.00026767,2]
[391917332,1760985039247,-151.0,0.000268,11]
[391917333,1760985039257,-402.0,0.00026823,2]
[391917334,1760985039267,-1221.63721374,0.00026828,5]
[391917335,1760985039277,-418.73500126,0.00026889,2]
[391917336,1760985039287,-376.92995743,0.00026889,2]
[391917337,1760985039296,-425.02176859,0.00026889,2]
[391917338,1760985039306,-325.48635271,0.00026889,2]
[391917339,1760985039315,-753.72300226,0.00026889,2]
[391917340,1760985039326,-1339.95200402,0.00026889,2]
[391917341,1760985039339,-9995.19777978,0.0002689,2]
[391917342,1760985039349,-151.0,0.000269,19]
[391917343,1760985039359,-7967.69606133,0.000269,2]
[391917344,1760985039369,-151.0,0.000269,7]
[391917345,1760985039379,-151.0,0.000269,7]
[391917346,1760985039389,-1521.602699,0.000269,7]
[391917347,1760985039398,-1521.602699,0.000269,7]
[391917348,1760985039409,-1521.602699,0.000269,7]
[391917349,1760985039419,-1521.602699,0.000269,7]
[391917350,1760985039429,-310.336325,0.000269,7]
[391917351,1760985039438,-310.336325,0.000269,7]
[391917352,1760985039448,-151.0,0.000269,2]
[391917353,1760985039458,-151.0,0.000269,7]
[391917354,1760985039467,-151.0,0.000269,7]
[391917355,1760985039476,-310.336325,0.000269,7]
[391917356,1760985039486,-151.0,0.000269,7]
[391917357,1760985039495,-151.0,0.000269,7]
[391917358,1760985039504,-310.336325,0.000269,7]
[391917359,1760985039514,-151.0,0.000269,7]
[391917360,1760985039523,-151.0,0.000269,7]
[391917361,1760985039533,-151.0,0.000269,7]
[391917362,1760985039542,-151.0,0.000269,7]
[391917363,1760985039551,-151.0,0.000269,7]
[391917364,1760985039560,-211.958132,0.000269,7]
[391917365,1760985039570,-295.593934,0.000269,7]
[391917366,1760985039580,-286.876082,0.000269,7]
[391917367,1760985039590,-295.593934,0.000269,7]
[391917368,1760985039599,-211.958132,0.000269,7]
[391917369,1760985039609,-286.876082,0.000269,7]
[391917370,1760985039619,-295.593934,0.000269,7]
[391917371,1760985039629,-1866.10366493,0.000269,2]
[391917372,1760985039638,-211.958132,0.000269,7]
[391917373,1760985039647,-286.876082,0.000269,7]
[391917374,1760985039657,-295.593934,0.000269,7]
[391917375,1760985039667,-211.958132,0.000269,7]
[391917376,1760985039678,-286.876082,0.000269,7]
[391917377,1760985039688,-151.0,0.000269,7]
[391917378,1760985039697,-151.0,0.000269,7]
[391917379,1760985039710,-151.0,0.000269,7]
[391917380,1760985039719,-151.0,0.000269,7]
[391917381,1760985039729,-151.0,0.000269,7]
[391917382,1760985039737,-151.0,0.000269,7]
[391917383,1760985039747,-151.0,0.000269,7]
[391917384,1760985039756,-151.0,0.000269,7]
[391917385,1760985039766,-151.0,0.000269,7]
[391917386,1760985039775,-151.0,0.000269,7]
[391917387,1760985039786,-151.0,0.000269,7]
[391917388,1760985039797,-229.470551,0.000269,7]
[391917389,1760985039807,-151.0,0.000269,7]
[391917390,1760985039817,-157.233478,0.000269,7]
[391917391,1760985039828,-1000.0,0.00026921,2]
[391917392,1760985039839,-402.0,0.00026942,2]
[391917393,1760985039847,-500.0,0.00026965,7]
[391917394,1760985039857,-151.0,0.00026965,7]
[391917395,1760985039866,-198.90172451,0.00026965,7]
[391917396,1760985039875,-500.0,0.00026973,2]
[391917397,1760985039885,-277.831891,0.00026985,7]
[391917398,1760985039895,-277.831891,0.00026985,7]
[391917399,1760985039905,-1557.202247,0.00026985,7]
[391917400,1760985039915,-151.0,0.00026985,7]
[391917401,1760985039927,-277.831891,0.00026985,7]
[391917402,1760985039936,-151.0,0.00026985,7]
[391917403,1760985039947,-1557.202247,0.00026985,7]
[391917404,1760985039958,-277.831891,0.00026985,7]
[391917405,1760985039967,-151.0,0.00026985,7]
[391917406,1760985039977,-1557.202247,0.00026985,7]
[391917407,1760985039987,-151.0,0.00026985,7]
[391917408,1760985039997,-1557.202247,0.00026985,7]
[391917409,1760985040008,-151.0,0.00026985,7]
[391917410,1760985040019,-261.384855,0.00026985,7]
[391917411,1760985040028,-261.384855,0.00026985,7]
[391917412,1760985040038,-261.384855,0.00026985,7]
[391917413,1760985040048,-261.384855,0.00026985,7]
[391917414,1760985040057,-151.0,0.00026985,7]
[391917415,1760985040066,-10000.0,0.00026985,7]
[391917416,1760985040076,-10000.0,0.00026985,7]
[391917418,1760985040085,-151.0,0.00026985,7]
[391917421,1760985040096,-10000.0,0.00026985,7]
[391917423,1760985040105,-10000.0,0.00026985,7]
[391917425,1760985040115,-10000.0,0.00026985,7]
[391917427,1760985040124,-10000.0,0.00026985,7]
[391917429,1760985040134,-10000.0,0.00026985,7]
[391917431,1760985040144,-10000.0,0.00026985,7]
[391917433,1760985040153,-151.0,0.00026985,7]
[391917435,1760985040163,-10000.0,0.00026985,7]
[391917437,1760985040172,-10000.0,0.00026985,7]
[391917438,1760985040182,-177.753116,0.00026985,7]
[391917439,1760985040192,-10000.0,0.00026985,7]
[391917440,1760985040202,-177.753116,0.00026985,7]
[391917441,1760985040212,-151.0,0.00026985,7]
[391917442,1760985040222,-10000.0,0.00026985,7]
[391917443,1760985040231,-177.753116,0.00026985,7]
[391917445,1760985040241,-151.0,0.00026985,7]
[391917446,1760985040250,-177.753116,0.00026985,7]
[391917447,1760985040259,-151.0,0.00026985,7]
[391917448,1760985040270,-151.0,0.00026985,7]
[391917449,1760985040280,-151.0,0.00026985,7]
[391917450,1760985040289,-151.0,0.00026985,7]
[391917451,1760985040298,-157.254758,0.00026985,7]
[391917452,1760985040308,-151.0,0.00026985,7]
[391917453,1760985040317,-151.0,0.00026985,7]
[391917454,1760985040327,-151.0,0.00026985,7]
[391917455,1760985040340,-151.0,0.00026985,7]
[391917456,1760985040349,-151.0,0.00026985,7]
[391917457,1760985040359,-157.233478,0.00026985,7]
[391917458,1760985040369,-7544.5404547,0.0002699,2]
[391917459,1760985040379,-364.7047142,0.0002699,2]
[391917460,1760985040388,-7265.7158791,0.0002699,2]
[391917461,1760985040397,-59971.1866787,0.0002699,2]
[391917462,1760985040408,-1094.1141425,0.0002699,2]
[391917463,1760985040418,-151.0,0.0002699,7]
[391917464,1760985040427,-151.0,0.0002699,7]
[391917465,1760985040437,-1521.602699,0.0002699,7]
[391917466,1760985040447,-1521.602699,0.0002699,7]
[391917467,1760985040457,-1521.602699,0.0002699,7]
[391917468,1760985040467,-1521.602699,0.0002699,7]
[391917469,1760985040476,-310.336325,0.0002699,7]
[391917470,1760985040485,-310.336325,0.0002699,7]
[391917471,1760985040495,-151.0,0.0002699,2]
[391917472,1760985040505,-151.0,0.0002699,7]
[391917473,1760985040515,-151.0,0.0002699,7]
[391917474,1760985040524,-310.336325,0.0002699,7]
[391917475,1760985040534,-151.0,0.0002699,7]
[391917476,1760985040543,-151.0,0.0002699,7]
[391917477,1760985040553,-310.336325,0.0002699,7]
[391917478,1760985040562,-151.0,0.0002699,7]
[391917479,1760985040572,-151.0,0.0002699,7]
[391917480,1760985040581,-151.0,0.0002699,7]
[391917481,1760985040590,-151.0,0.0002699,7]
[391917482,1760985040600,-151.0,0.0002699,7]
[391917483,1760985040609,-211.958132,0.0002699,7]
[391917484,1760985040620,-295.593934,0.0002699,7]
[391917485,1760985040629,-286.876082,0.0002699,7]
[391917486,1760985040638,-295.593934,0.0002699,7]
[391917487,1760985040648,-211.958132,0.0002699,7]
[391917488,1760985040657,-286.876082,0.0002699,7]
[391917489,1760985040667,-295.593934,0.0002699,7]
[391917492,1760985040676,-211.958132,0.0002699,7]
[391917493,1760985040685,-286.876082,0.0002699,7]
[391917494,1760985040695,-295.593934,0.0002699,7]
[391917495,1760985040704,-211.958132,0.0002699,7]
[391917496,1760985040713,-286.876082,0.0002699,7]
[391917497,1760985040723,-151.0,0.0002699,7]
[391917498,1760985040732,-151.0,0.0002699,7]
[391917499,1760985040742,-160.224,0.00026999,2]
[391917500,1760985040751,-141144.02083746,0.00027,2]
[391917501,1760985040760,-600.0,0.00027,14]
[391917502,1760985040770,-160.0,0.00027,3]
[391917503,1760985040779,-402.9601108,0.00027,3]
[391917504,1760985040788,-204.294519,0.00027,7]
[391917505,1760985040797,-204.294519,0.00027,7]
[391917506,1760985040806,-204.294519,0.00027,7]
[391917507,1760985040816,-204.294519,0.00027,7]
[391917508,1760985040825,-204.294519,0.00027,7]
[391917509,1760985040835,-204.294519,0.00027,7]
[391917510,1760985040844,-204.294519,0.00027,7]
[391917511,1760985040853,-204.294519,0.00027,7]
[391917512,1760985040863,-160.38176,0.00027,7]
[391917513,1760985040873,-160.38176,0.00027,7]
[391917514,1760985040883,-160.38176,0.00027,7]
[391917515,1760985040893,-160.38176,0.00027,7]
[391917516,1760985040902,-160.38176,0.00027,7]
[391917517,1760985040913,-160.38176,0.00027,7]
[391917518,1760985040923,-160.38176,0.00027,7]
[391917519,1760985040932,-160.38176,0.00027,7]
[391917520,1760985040941,-160.38176,0.00027,7]
[391917521,1760985040950,-160.38176,0.00027,7]
[391917522,1760985040959,-160.38176,0.00027,7]
[391917523,1760985040969,-160.38176,0.00027,7]
[391917524,1760985040978,-160.38176,0.00027,7]
[391917525,1760985040987,-160.38176,0.00027,7]
[391917526,1760985040997,-160.38176,0.00027,7]
[391917527,1760985041007,-160.38176,0.00027,7]
[391917528,1760985041016,-160.38176,0.00027,7]
[391917529,1760985041026,-160.38176,0.00027,7]
[391917530,1760985041035,-160.38176,0.00027,7]
[391917531,1760985041044,-160.381753,0.00027,7]
[391917532,1760985041054,-151.0,0.00027,7]
[391917533,1760985041064,-153.05596,0.00027,7]
[391917534,1760985041075,-151.0,0.00027,7]
[391917535,1760985041084,-151.0,0.00027,7]
[391917537,1760985041093,-151.0,0.00027,7]
[391917538,1760985041103,-192.259718,0.00027,7]
[391917539,1760985041112,-151.0,0.00027,7]
[391917540,1760985041123,-192.259718,0.00027,7]
[391917541,1760985041132,-151.0,0.00027,7]
[391917542,1760985041142,-192.259718,0.00027,7]
[391917543,1760985041151,-192.259718,0.00027,7]
[391917544,1760985041161,-151.0,0.00027,7]
[391917545,1760985041170,-192.259718,0.00027,7]
[391917546,1760985041180,-151.0,0.00027,7]
[391917547,1760985041189,-192.259718,0.00027,7]
[391917548,1760985041198,-157.181817,0.00027,7]
[391917549,1760985041207,-192.259718,0.00027,7]
[391917550,1760985041216,-192.259718,0.00027,7]
[391917551,1760985041226,-192.259718,0.00027,7]
[391917552,1760985041235,-192.259718,0.00027,7]
[391917553,1760985041244,-192.259718,0.00027,7]
[391917554,1760985041254,-192.259718,0.00027,7]
[391917555,1760985041263,-192.259718,0.00027,7]
[391917556,1760985041273,-151.90501,0.00027,7]
[391917557,1760985041282,-192.259718,0.00027,7]
[391917558,1760985041291,-192.259718,0.00027,7]
[391917559,1760985041301,-192.259718,0.00027,7]
[391917560,1760985041310,-192.259718,0.00027,7]
[391917561,1760985041320,-192.259718,0.00027,7]
[391917562,1760985041331,-192.259718,0.00027,7]
[391917563,1760985041342,-192.25972394,0.00027,7]
[391917564,1760985041352,-151.0,0.00027,7]
[391917565,1760985041361,-151.0,0.00027,7]
[391917566,1760985041371,-151.0,0.00027,7]
[391917567,1760985041382,-151.0,0.00027,7]
[391917568,1760985041391,-249.018806,0.00027,7]
[391917569,1760985041400,-151.0,0.00027,7]
[391917570,1760985041409,-151.0,0.00027,7]
[391917571,1760985041424,-151.0,0.00027,7]
[391917572,1760985041434,-163.82601,0.00027,7]
[391917573,1760985041443,-152.547343,0.00027,7]
[391917574,1760985041453,-151.0,0.00027,7]
[391917575,1760985041463,-151.0,0.00027,7]
[391917576,1760985041472,-151.0,0.00027,7]
[391917577,1760985041482,-151.0,0.00027,7]
[391917578,1760985041491,-151.0,0.00027,7]
[391917579,1760985041501,-151.0,0.00027,7]
[391917580,1760985041511,-151.0,0.00027,7]
[391917581,1760985041520,-151.0,0.00027,7]
[391917582,1760985041529,-151.0,0.00027,7]
[391917583,1760985041538,-151.0,0.00027,7]
[391917584,1760985041548,-151.0,0.00027,7]
[391917585,1760985041557,-151.0,0.00027,7]
[391917586,1760985041566,-151.0,0.00027,7]
[391917587,1760985041575,-151.0,0.00027,7]
[391917588,1760985041584,-154.285087,0.00027,7]
[391917589,1760985041594,-151.0,0.00027,7]
[391917590,1760985041603,-231.529696,0.00027,7]
[391917591,1760985041612,-186.281692,0.00027,7]
[391917592,1760985041623,-151.0,0.00027,7]
[391917593,1760985041632,-151.0,0.00027,7]
[391917594,1760985041642,-151.0,0.00027,7]
[391917595,1760985041651,-151.0,0.00027,7]
[391917596,1760985041660,-151.0,0.00027,7]
[391917597,1760985041670,-151.0,0.00027,7]
[391917598,1760985041679,-151.0,0.00027,7]
[391917599,1760985041688,-151.0,0.00027,7]
[391917600,1760985041698,-151.0,0.00027,7]
[391917601,1760985041707,-151.0,0.00027,7]
[391917602,1760985041717,-151.0,0.00027,7]
[391917603,1760985041727,-151.0,0.00027,7]
[391917604,1760985041737,-151.0,0.00027,7]
[391917605,1760985041747,-151.0,0.00027,7]
[391917606,1760985041757,-151.0,0.00027,7]
[391917607,1760985041766,-151.0,0.00027,7]
[391917608,1760985041775,-151.0,0.00027,7]
[391917609,1760985041784,-151.0,0.00027,7]
[391917610,1760985041793,-151.0,0.00027,7]
[391917611,1760985041803,-151.0,0.00027,7]
[391917612,1760985041812,-151.0,0.00027,7]
[391917613,1760985041821,-151.0,0.00027,7]
[391917614,1760985041830,-185.827825,0.00027,7]
[391917615,1760985041839,-151.0,0.00027,7]
[391917616,1760985041848,-151.0,0.00027,7]
[391917617,1760985041857,-185.685349,0.00027,7]
[391917618,1760985041866,-151.0,0.00027,7]
[391917619,1760985041875,-151.0,0.00027,7]
[391917620,1760985041884,-151.0,0.00027,7]
[391917621,1760985041893,-151.0,0.00027,7]
[391917622,1760985041903,-151.0,0.00027,7]
[391917623,1760985041912,-151.0,0.00027,7]
[391917624,1760985041921,-151.0,0.00027,7]
[391917625,1760985041930,-151.0,0.00027,7]
[391917626,1760985041939,-151.0,0.00027,7]
[391917627,1760985041949,-151.909778,0.00027,7]
[391917628,1760985041958,-196.021693,0.00027,7]
[391917629,1760985041967,-196.021693,0.00027,7]
[391917630,1760985041976,-196.021693,0.00027,7]
[391917631,1760985041986,-196.021693,0.00027,7]
[391917632,1760985041995,-196.021693,0.00027,7]
[391917633,1760985042004,-196.021693,0.00027,7]
[391917634,1760985042014,-196.021693,0.00027,7]
[391917635,1760985042023,-196.021693,0.00027,7]
[391917636,1760985042032,-196.021693,0.00027,7]
[391917637,1760985042041,-196.021693,0.00027,7]
[391917638,1760985042050,-196.021693,0.00027,7]
[391917639,1760985042060,-196.021693,0.00027,7]
[391917640,1760985042069,-196.021693,0.00027,7]
[391917641,1760985042078,-196.021693,0.00027,7]
[391917642,1760985042087,-196.021693,0.00027,7]
[391917643,1760985042097,-196.021693,0.00027,7]
[391917644,1760985042106,-196.021693,0.00027,7]
[391917645,1760985042116,-196.021693,0.00027,7]
[391917646,1760985042126,-196.021693,0.00027,7]
[391917647,1760985042137,-196.021689,0.00027,7]
[391917648,1760985042146,-509.356734,0.00027,7]
[391917649,1760985042156,-509.356734,0.00027,7]
[391917650,1760985042165,-509.356734,0.00027,7]
[391917651,1760985042175,-509.356734,0.00027,7]
[391917652,1760985042184,-509.356734,0.00027,7]
[391917653,1760985042193,-509.356734,0.00027,7]
[391917654,1760985042203,-509.356734,0.00027,7]
[391917655,1760985042213,-509.356734,0.00027,7]
[391917656,1760985042223,-509.356734,0.00027,7]
[391917657,1760985042233,-509.356734,0.00027,7]
[391917658,1760985042242,-509.356734,0.00027,7]
[391917659,1760985042251,-509.356734,0.00027,7]
[391917660,1760985042260,-509.356734,0.00027,7]
[391917661,1760985042269,-509.356734,0.00027,7]
[391917662,1760985042278,-509.356734,0.00027,7]
[391917663,1760985042287,-509.356734,0.00027,7]
[391917664,1760985042296,-509.356734,0.00027,7]
[391917665,1760985042305,-509.356734,0.00027,7]
[391917666,1760985042314,-509.356734,0.00027,7]
[391917667,1760985042324,-509.35673,0.00027,7]
[391917668,1760985042335,-151.0,0.00027,7]
[391917669,1760985042345,-151.0,0.00027,7]
[391917670,1760985042355,-151.0,0.00027,7]